bitfinex/quotes_BTCUSD_20240823
["timestamp","ask_amount","ask_price","bid_price","bid_amount"]
[1724421731765,0.07303364,61566.0,61565.0,2.56834453]
[1724421731964,0.07303364,61566.0,61565.0,2.48357646]
[1724421732312,0.07303364,61566.0,61565.0,2.17271746]
[1724421732428,0.07303364,61566.0,61565.0,2.15871746]
[1724421732632,0.06803364,61566.0,61565.0,2.15871746]
[1724421732833,0.06803364,61566.0,61565.0,2.17271746]
[1724421733036,0.06803364,61566.0,61565.0,2.53434453]
[1724421733239,0.06803364,61566.0,61565.0,2.48357646]
[1724421733467,0.089,61574.0,61569.0,1.464771]
[1724421733675,0.089,61574.0,61569.0,1.65177398]
[1724421733870,0.089,61574.0,61569.0,2.08822802]
[1724421734144,0.03352477,61570.0,61569.0,2.41306602]
[1724421734304,0.03352477,61570.0,61569.0,2.08822802]
[1724421734450,0.0002,61579.0,61577.0,0.003]
[1724421734655,0.0002,61579.0,61577.0,0.88009453]
[1724421734958,0.024042,61578.0,61577.0,1.86401638]
[1724421735148,4e-07,61581.0,61580.0,0.49217]
[1724421735368,4e-07,61581.0,61580.0,1.00395298]
[1724421735567,0.000127,61589.0,61583.0,0.545746]
[1724421735791,0.000127,61589.0,61583.0,1.68404098]
[1724421736065,0.000127,61589.0,61583.0,2.0182772]
[1724421736772,0.000127,61589.0,61583.0,1.6359132]
[1724421737329,0.000127,61589.0,61583.0,1.6349132]
[1724421737533,0.000127,61589.0,61583.0,1.6379132]
[1724421737762,0.000127,61589.0,61583.0,1.6349132]
[1724421737958,0.000127,61589.0,61583.0,1.3101492]
[1724421738516,0.000127,61589.0,61583.0,1.6349132]
[1724421738737,0.05692081,61586.0,61585.0,1.137639]
[1724421738938,0.05692081,61586.0,61585.0,1.30164198]
[1724421739157,0.05692081,61586.0,61585.0,1.63584766]
[1724421739493,8.1e-07,61586.0,61585.0,1.98560166]
[1724421739668,8.1e-07,61586.0,61585.0,1.63484766]
[1724421740073,8.1e-07,61586.0,61585.0,1.31009366]
[1724421740456,8.1e-07,61586.0,61585.0,1.31709366]
[1724421740920,8.1e-07,61586.0,61585.0,1.69744766]
[1724421741121,8.1e-07,61586.0,61585.0,1.31809366]
[1724421741351,8.1e-07,61586.0,61585.0,1.64284766]
[1724421741639,8.1e-07,61586.0,61585.0,1.63984766]
[1724421741786,0.000127,61589.0,61588.0,0.814845]
[1724421741987,0.00119052,61603.0,61593.0,0.81474]
[1724421742215,0.00119052,61603.0,61593.0,1.63556698]
[1724421742368,0.00119052,61603.0,61601.0,0.32567]
[1724421742594,0.089,61606.0,61605.0,0.163324]
[1724421742788,0.1538,61606.0,61605.0,0.32632698]
[1724421743003,0.1538,61606.0,61605.0,0.33648719]
[1724421743220,0.089,61610.0,61606.0,0.486964]
[1724421743444,0.089,61610.0,61609.0,0.811567]
[1724421743647,0.089,61610.0,61609.0,1.30019698]
[1724421743846,0.089,61610.0,61609.0,1.31031614]
[1724421744048,0.089,61610.0,61609.0,1.63494314]
[1724421744450,0.1706,61610.0,61609.0,0.98568914]
[1724421744671,0.2359,61610.0,61609.0,0.01011916]
[1724421744874,0.1543,61610.0,61601.0,0.001]
[1724421745025,0.0751,61609.0,61608.0,0.486949]
[1724421745232,0.0751,61609.0,61596.0,0.49184629]
[1724421745545,0.0751,61609.0,61605.0,0.001]
[1724421745748,0.0751,61609.0,61597.0,0.16400298]
[1724421745947,0.0615,61604.0,61588.0,0.00752904]
[1724421746149,0.0615,61602.0,61589.0,0.16400298]
[1724421746377,0.1419,61609.0,61608.0,0.162316]
[1724421746548,0.1419,61609.0,61608.0,1.46743127]
[1724421746771,0.089,61610.0,61609.0,0.48694]
[1724421746971,0.089,61610.0,61609.0,1.62482398]
[1724421747325,0.089,61610.0,61609.0,1.63494314]
[1724421747727,0.089,61610.0,61609.0,1.63594314]
[1724421748023,0.089,61610.0,61609.0,1.63494314]
[1724421748357,0.089,61610.0,61609.0,1.68688186]
[1724421748557,0.089,61610.0,61609.0,1.68788186]
[1724421748763,0.089,61610.0,61609.0,2.01250886]
[1724421748966,0.089,61610.0,61609.0,2.01646886]
[1724421749385,0.089,61614.0,61613.0,1.465687]
[1724421749586,0.089,61614.0,61613.0,1.72968998]
[1724421749807,0.089,61614.0,61613.0,1.8583462]
[1724421750008,0.089,61614.0,61613.0,2.1549922]
[1724421750236,0.089,61614.0,61613.0,1.9594141]
[1724421750435,0.089,61614.0,61613.0,1.9604141]
[1724421750663,0.089,61614.0,61613.0,1.9623741]
[1724421750803,0.089,61614.0,61613.0,2.01431282]
[1724421751001,0.089,61614.0,61613.0,1.6377681]
[1724421751226,0.089,61614.0,61613.0,1.7333462]
[1724421751442,0.02408,61614.0,61613.0,2.1809522]
[1724421751679,1e-06,61614.0,61613.0,2.0853741]
[1724421751881,1e-06,61614.0,61613.0,2.13731282]
[1724421752027,1e-06,61614.0,61613.0,2.1546226]
[1724421752228,1e-06,61614.0,61613.0,1.8300166]
[1724421752431,1e-06,61614.0,61613.0,2.1776226]
[1724421752750,0.06788199,61618.0,61617.0,1.788177]
[1724421752958,0.0997998,61634.0,61627.0,0.00296]
[1724421753297,0.089,61638.0,61634.0,0.00296]
[1724421753493,0.55719154,61652.0,61641.0,0.001]
[1724421753693,0.084,61642.0,61641.0,1.79145527]
[1724421753881,0.084,61642.0,61641.0,2.11887427]
[1724421754084,0.084,61642.0,61641.0,2.23066521]
[1724421754417,0.07811481,61655.0,61654.0,1.013935]
[1724421754571,0.089,61663.0,61658.0,0.97839929]
[1724421754771,0.089,61663.0,61658.0,2.11650927]
[1724421754974,0.089,61663.0,61658.0,2.15108599]
[1724421755336,0.05112746,61659.0,61658.0,2.68237119]
[1724421755531,0.089,61667.0,61666.0,0.163163]
[1724421755784,0.089,61667.0,61666.0,1.07581998]
[1724421756026,0.089,61667.0,61666.0,0.98435474]
[1724421756357,0.089,61667.0,61666.0,0.66002774]
[1724421756769,0.089,61667.0,61666.0,0.98435474]
[1724421756994,0.089,61667.0,61666.0,1.37041092]
[1724421757191,0.089,61667.0,61666.0,1.30968174]
[1724421757618,0.089,61667.0,61666.0,1.37041092]
[1724421757794,0.089,61667.0,61666.0,1.39341092]
[1724421757996,0.089,61667.0,61666.0,0.66002774]
[1724421758378,0.089,61667.0,61666.0,0.67102774]
[1724421758580,0.089,61667.0,61666.0,0.98435474]
[1724421758798,0.089,61667.0,61666.0,0.66102774]
[1724421758974,0.089,61667.0,61666.0,0.99735474]
[1724421759156,0.089,61667.0,61666.0,1.32468174]
[1724421759358,0.089,61667.0,61666.0,1.31168174]
[1724421759723,0.089,61667.0,61666.0,1.41668174]
[1724421759878,0.089,61667.0,61666.0,1.73400874]
[1724421760133,0.06364429,61667.0,61666.0,1.75896874]
[1724421760291,0.04092561,61667.0,61666.0,1.82556874]
[1724421760490,0.04092561,61667.0,61666.0,1.82756874]
[1724421761015,0.04092561,61667.0,61666.0,2.12889574]
[1724421761213,0.04092561,61667.0,61666.0,1.82756874]
[1724421761618,0.01406817,61667.0,61666.0,1.81456874]
[1724421761995,0.01406817,61667.0,61666.0,2.83356874]
[1724421762367,0.01406817,61667.0,61666.0,1.81456874]
[1724421762575,0.53043085,61675.0,61666.0,1.81456874]
[1724421762576,0.38150779,61675.0,61674.0,2.038167]
[1724421762749,0.26285559,61675.0,61674.0,2.52669127]
[1724421762953,0.26285559,61675.0,61674.0,2.5061441]
[1724421763162,0.16557159,61675.0,61674.0,2.8264691]
[1724421763358,0.089,61683.0,61678.0,1.139884]
[1724421763579,0.08860136,61679.0,61678.0,1.75115098]
[1724421763737,0.08860136,61679.0,61678.0,1.75861851]
[1724421763970,3.6e-07,61679.0,61678.0,2.65248251]
[1724421764173,0.05900036,61683.0,61682.0,1.33981]
[1724421764424,0.05900036,61683.0,61682.0,2.17529898]
[1724421764635,0.86434877,61760.0,61750.0,16.51334544]
[1724421764857,0.86434877,61760.0,61750.0,16.21354544]
[1724421764858,0.4956352,61751.0,61750.0,16.21354544]
[1724421765032,1.1383972,61751.0,61750.0,15.92247661]
[1724421765234,1.4622782,61751.0,61750.0,15.81857661]
[1724421765686,1.7861592,61751.0,61750.0,15.75379861]
[1724421765901,1.7861592,61751.0,61750.0,15.72140961]
[1724421766041,2.1050402,61751.0,61750.0,15.55946461]
[1724421766380,1.7637392,61751.0,61750.0,15.55518522]
[1724421766612,1.8867392,61751.0,61750.0,15.55518522]
[1724421766820,1.5398582,61751.0,61750.0,15.55518522]
[1724421767024,1.8311592,61751.0,61750.0,15.55518522]
[1724421767231,1.5072782,61751.0,61750.0,15.55518522]
[1724421767432,1.8311592,61751.0,61750.0,15.52279622]
[1724421768325,2.1780402,61751.0,61750.0,15.45801822]
[1724421768514,1.8541592,61751.0,61750.0,15.36085122]
[1724421768924,1.4072782,61751.0,61750.0,15.36085122]
[1724421769123,1.73525996,61751.0,61750.0,14.85638893]
[1724421769351,1.73525996,61751.0,61750.0,14.75336015]
[1724421769554,1.57128118,61751.0,61750.0,14.75336015]
[1724421769734,1.24740018,61751.0,61750.0,14.75336015]
[1724421769872,1.57128118,61751.0,61750.0,14.75336015]
[1724421771478,1.0833972,61751.0,61750.0,14.89675915]
[1724421771685,1.24740018,61751.0,61750.0,14.89675915]
[1724421772309,0.089,61752.0,61750.0,14.89675915]
[1724421772546,1.00258496,61751.0,61750.0,14.89675915]
[1724421772779,1.65034696,61751.0,61750.0,14.89675915]
[1724421773417,1.65034696,61751.0,61750.0,14.89917453]
[1724421773991,1.62156698,61751.0,61750.0,14.89917453]
[1724421774198,1.72156698,61751.0,61750.0,13.89927453]
[1724421775280,1.74456698,61751.0,61750.0,13.89927453]
[1724421776673,1.74456698,61751.0,61750.0,13.72902665]
[1724421776871,1.74456698,61751.0,61750.0,13.68017887]
[1724421777073,1.90854576,61751.0,61750.0,13.68017887]
[1724421777661,1.90854576,61751.0,61750.0,13.6703358]
[1724421777861,2.23242676,61751.0,61750.0,13.00678099]
[1724421778066,1.90854576,61751.0,61750.0,13.00678099]
[1724421778445,1.90854576,61751.0,61750.0,12.98503132]
[1724421778926,2.23242676,61751.0,61750.0,12.92210024]
[1724421779132,2.23242676,61751.0,61750.0,12.55633997]
[1724421779133,2.23414902,61751.0,61750.0,12.55633997]
[1724421779333,2.23414902,61751.0,61750.0,11.82239304]
[1724421779334,2.74252102,61751.0,61750.0,11.82239304]
[1724421779539,2.92908802,61751.0,61750.0,11.82239304]
[1724421779764,2.92908802,61751.0,61750.0,9.77409779]
[1724421779765,2.79768924,61751.0,61750.0,9.77409779]
[1724421779976,3.60820784,61751.0,61750.0,9.11350045]
[1724421780197,3.60739224,61751.0,61750.0,9.0775329]
[1724421780404,3.60739224,61751.0,61750.0,8.85196326]
[1724421780405,4.34515284,61751.0,61750.0,8.85196326]
[1724421780834,4.02127184,61751.0,61750.0,8.73079626]
[1724421781034,4.24858184,61751.0,61750.0,8.66601826]
[1724421781440,4.24858184,61751.0,61750.0,8.43977468]
[1724421781590,3.98869184,61751.0,61750.0,8.43977468]
[1724421781796,4.05363684,61751.0,61750.0,8.34260768]
[1724421781993,3.24393384,61751.0,61750.0,8.27782968]
[1724421782196,3.56781484,61751.0,61750.0,8.27782968]
[1724421782399,3.60039484,61751.0,61750.0,8.22792285]
[1724421782597,4.07711084,61751.0,61750.0,8.10828304]
[1724421782806,4.07711084,61751.0,61750.0,7.94633804]
[1724421782807,4.41009784,61751.0,61750.0,7.94633804]
[1724421783008,4.66787384,61751.0,61750.0,7.94633804]
[1724421783210,4.58548484,61751.0,61750.0,7.94633804]
[1724421783416,4.41009784,61751.0,61750.0,7.62268637]
[1724421783628,4.83337984,61751.0,61750.0,7.62268637]
[1724421783777,4.83337984,61751.0,61750.0,7.49313037]
[1724421783980,4.8750303,61751.0,61750.0,7.36306586]
[1724421784181,4.8750303,61751.0,61750.0,6.00601734]
[1724421784386,4.9050303,61751.0,61750.0,5.70144235]
[1724421784786,4.9050303,61751.0,61750.0,5.44396997]
[1724421785248,4.9050303,61751.0,61750.0,4.92708595]
[1724421785580,5.38727803,61751.0,61750.0,0.09577645]
[1724421785784,5.38727803,61751.0,61663.0,0.0765]
[1724421785785,0.4,61705.0,61663.0,0.0765]
[1724421785958,0.02543327,61684.0,61663.0,0.0765]
[1724421786295,0.02543327,61684.0,61653.0,0.00396]
[1724421786296,0.4,61681.0,61649.0,0.0752]
[1724421786508,0.1622,61652.0,61649.0,0.0752]
[1724421786708,0.1,61680.0,61649.0,0.0752]
[1724421786916,0.1622,61652.0,61649.0,0.0752]
[1724421787292,0.1,61666.0,61649.0,0.0752]
[1724421787474,0.16400298,61665.0,61649.0,0.0752]
[1724421787610,0.16400298,61665.0,61640.0,0.00058588]
[1724421787611,0.065008,61681.0,61652.0,0.24600298]
[1724421787821,0.065008,61681.0,61674.0,0.0831]
[1724421788050,0.065008,61681.0,61662.0,0.003]
[1724421788051,0.49229154,61680.0,61662.0,0.003]
[1724421788250,0.324243,61682.0,61663.0,0.16400298]
[1724421788446,0.49229154,61680.0,61663.0,0.16400298]
[1724421788663,0.34966627,61684.0,61663.0,0.16400298]
[1724421788885,0.65629452,61683.0,61663.0,0.16400298]
[1724421789110,0.02543327,61684.0,61668.0,0.001]
[1724421789318,0.02543327,61684.0,61681.0,0.001]
[1724421789528,0.0169669,61702.0,61687.0,0.0811]
[1724421789746,0.0169669,61702.0,61701.0,0.567314]
[1724421789958,0.0169669,61702.0,61701.0,0.633014]
[1724421790235,0.162015,61723.0,61709.0,0.16205]
[1724421790408,0.49229154,61715.0,61704.0,0.001]
[1724421790609,0.01696029,61730.0,61704.0,0.001]
[1724421790810,0.162023,61720.0,61704.0,0.001]
[1724421790959,0.01696029,61730.0,61702.0,0.001]
[1724421791168,0.01696029,61730.0,61711.0,0.081]
[1724421791368,0.323971,61734.0,61718.0,0.001]
[1724421791572,0.01695784,61737.0,61721.0,0.0611]
[1724421791944,0.49229154,61736.0,61729.0,0.082]
[1724421792219,0.01695784,61737.0,61729.0,0.082]
[1724421792572,0.01695784,61737.0,61721.0,0.0611]
[1724421792573,0.16400298,61736.0,61721.0,0.0611]
[1724421792772,0.323973,61734.0,61721.0,0.0611]
[1724421792974,0.48797598,61734.0,61721.0,0.0611]
[1724421793174,0.48798098,61733.0,61721.0,0.0611]
[1724421793417,0.323992,61730.0,61721.0,0.0611]
[1724421793768,0.324038,61721.0,61714.0,0.0649]
[1724421793923,0.16400298,61721.0,61713.0,0.0804]
[1724421794138,0.16203,61717.0,61713.0,0.0804]
[1724421794334,0.16203,61717.0,61707.0,0.0648]
[1724421794335,0.16400298,61721.0,61707.0,0.0648]
[1724421794679,0.01695784,61737.0,61700.0,0.0651]
[1724421794680,0.16400298,61716.0,61700.0,0.0651]
[1724421795188,0.1,61715.0,61698.0,0.0814]
[1724421795467,0.16400298,61714.0,61698.0,0.0814]
[1724421795667,0.324126,61705.0,61698.0,0.0814]
[1724421796231,0.162068,61703.0,61698.0,0.0814]
[1724421796589,0.16400298,61714.0,61698.0,0.0814]
[1724421796795,0.324117,61707.0,61698.0,0.0814]
[1724421796990,0.324139,61702.0,61698.0,0.0814]
[1724421797239,0.162071,61702.0,61698.0,0.0814]
[1724421797446,0.324109,61708.0,61698.0,0.0814]
[1724421797447,0.162062,61705.0,61698.0,0.0814]
[1724421800039,0.75629452,61667.0,61651.0,0.0002]
[1724421800166,0.49229154,61666.0,61651.0,0.0002]
[1724421800366,0.811002,61652.0,61651.0,0.0002]
[1724421800569,0.1622,61652.0,61651.0,0.0002]
[1724421800752,0.1,61659.0,61651.0,0.0002]
[1724421801153,0.0273,61668.0,61651.0,0.0002]
[1724421801402,0.006501,61673.0,61652.0,0.22550298]
[1724421801609,0.49229154,61667.0,61652.0,0.0615]
[1724421801778,0.0065,61673.0,61652.0,0.0615]
[1724421801978,0.324324,61667.0,61653.0,0.16400298]
[1724421802177,0.16400298,61673.0,61653.0,0.16400298]
[1724421802382,0.0273,61679.0,61663.0,0.001]
[1724421802610,0.0273,61679.0,61652.0,0.0615]
[1724421802611,0.486531,61661.0,61660.0,0.0802]
[1724421802863,0.162198,61653.0,61652.0,0.0615]
[1724421803069,0.324291,61673.0,61657.0,0.001]
[1724421803269,0.324291,61673.0,61652.0,0.0615]
[1724421803270,0.162183,61659.0,61652.0,0.0645]
[1724421803571,0.162183,61659.0,61656.0,0.001]
[1724421803750,0.424286,61674.0,61664.0,0.0802]
[1724421803904,0.162166,61665.0,61664.0,0.0802]
[1724421804316,0.1,61683.0,61664.0,0.0802]
[1724421804523,0.16400298,61682.0,61667.0,0.001]
[1724421804724,0.49229154,61681.0,61668.0,0.0605]
[1724421804942,0.51959154,61697.0,61668.0,0.0605]
[1724421805145,0.16400298,61694.0,61668.0,0.0605]
[1724421805446,0.16400298,61694.0,61678.0,0.0758]
[1724421805648,0.49229154,61689.0,61678.0,0.0758]
[1724421805979,0.324191,61693.0,61670.0,0.001]
[1724421805980,0.324274,61677.0,61670.0,0.001]
[1724421806263,0.486459,61670.0,61669.0,0.0816]
[1724421806970,0.162163,61667.0,61661.0,0.001]
[1724421807198,0.324292,61673.0,61656.0,0.003]
[1724421807397,0.0273,61686.0,61651.0,0.0002]
[1724421807398,0.16400298,61672.0,61651.0,0.0002]
[1724421807595,0.324349,61662.0,61651.0,0.0766]
[1724421807797,0.1622,61652.0,61651.0,0.0766]
[1724421807999,0.486601,61652.0,61651.0,0.0766]
[1724421808405,0.0273,61669.0,61651.0,0.0766]
[1724421808406,0.162191,61656.0,61651.0,0.0766]
[1724421808629,0.0273,61669.0,61651.0,0.0766]
[1724421808630,0.1622,61652.0,61651.0,0.0766]
[1724421808835,1.135403,61652.0,61651.0,0.0002]
[1724421809053,0.19130298,61652.0,61625.0,0.0757]
[1724421809266,0.162249,61634.0,61626.0,0.001]
[1724421809472,0.162247,61635.0,61632.0,0.01077534]
[1724421809675,0.1273,61652.0,61631.0,0.0002]
[1724421809676,0.162243,61636.0,61631.0,0.0002]
[1724421809881,0.486759,61632.0,61631.0,0.0002]
[1724421810689,0.162253,61632.0,61631.0,0.0002]
[1724421810895,0.04933688,61639.0,61631.0,0.0002]
[1724421811102,0.65076198,61632.0,61631.0,0.0002]
[1724421811308,0.97526798,61632.0,61631.0,0.0002]
[1724421811510,1.12460486,61632.0,61631.0,0.0002]
[1724421811714,0.911265,61632.0,61631.0,0.0002]
[1724421811920,0.75076198,61632.0,61631.0,0.0002]
[1724421812122,1.07526798,61632.0,61631.0,0.0002]
[1724421812524,1.39918924,61632.0,61631.0,0.0002]
[1724421812939,1.07468324,61632.0,61631.0,0.0002]
[1724421813148,0.42567124,61632.0,61631.0,0.0002]
[1724421813351,0.75017724,61632.0,61631.0,0.0002]
[1724421813554,0.58617426,61632.0,61631.0,0.0002]
[1724421813760,0.262253,61632.0,61631.0,0.0002]
[1724421813991,0.262253,61632.0,61631.0,0.032651]
[1724421814237,0.1,61632.0,61631.0,0.032651]
[1724421814450,0.0273,61656.0,61634.0,0.001]
[1724421814660,0.162204,61651.0,61639.0,0.001]
[1724421814865,0.16400298,61656.0,61642.0,0.001]
[1724421815042,0.16400298,61656.0,61646.0,0.001]
[1724421815217,0.16400298,61656.0,61642.0,0.001]
[1724421815421,0.324386,61655.0,61642.0,0.003]
[1724421815632,0.324341,61664.0,61648.0,0.001]
[1724421815827,0.162153,61670.0,61660.0,0.001]
[1724421816026,0.16400298,61678.0,61664.0,0.001]
[1724421816375,0.49229154,61679.0,61663.0,0.001]
[1724421816579,0.49229154,61679.0,61661.0,0.24330298]
[1724421816580,0.324267,61678.0,61661.0,0.0793]
[1724421816806,0.162174,61662.0,61661.0,0.0793]
[1724421817023,0.486601,61652.0,61651.0,0.0793]
[1724421817224,0.811002,61652.0,61651.0,0.0793]
[1724421817437,0.324431,61647.0,61641.0,0.0793]
[1724421817715,0.162227,61642.0,61641.0,0.0793]
[1724421817950,0.324418,61649.0,61632.0,0.001]
[1724421817951,0.0765,61644.0,61632.0,0.001]
[1724421818194,0.0765,61644.0,61624.0,0.0764]
[1724421818195,0.486759,61632.0,61624.0,0.0764]
[1724421818469,0.486759,61632.0,61617.0,0.00196]
[1724421818470,0.65076198,61632.0,61617.0,0.2447]
[1724421818732,0.49940298,61632.0,61604.0,0.003]
[1724421818984,0.26400298,61631.0,61603.0,0.001]
[1724421819250,0.162304,61613.0,61608.0,0.001]
[1724421819518,0.26400298,61631.0,61598.0,0.2447]
[1724421819519,0.65092098,61612.0,61598.0,0.2447]
[1724421819788,1.32933298,61612.0,61598.0,0.003]
[1724421820022,1.32933298,61612.0,61583.0,0.2478]
[1724421820023,0.97553298,61612.0,61583.0,0.2478]
[1724421820265,0.586918,61612.0,61601.0,0.003]
[1724421820621,0.586918,61612.0,61598.0,0.001]
[1724421820622,0.486918,61612.0,61598.0,0.001]
[1724421820775,1.07553298,61612.0,61593.0,0.2475]
[1724421821011,0.586918,61612.0,61600.0,0.1874]
[1724421821251,0.2486,61623.0,61608.0,0.001]
[1724421821252,0.324581,61618.0,61608.0,0.001]
[1724421821488,0.324595,61616.0,61605.0,0.001]
[1724421821737,0.5258,61631.0,61615.0,0.001]
[1724421821938,0.49229154,61622.0,61601.0,0.003]
[1724421822135,0.16400298,61622.0,61608.0,0.001]
[1724421822357,0.16400298,61622.0,61612.0,0.2475]
[1724421822358,0.324562,61622.0,61612.0,0.2475]
[1724421822581,0.32453,61628.0,61620.0,0.001]
[1724421822779,0.32453,61628.0,61612.0,0.2475]
[1724421822780,0.162269,61626.0,61622.0,0.003]
[1724421822958,4e-05,61632.0,61616.0,0.001]
[1724421823190,0.16400298,61631.0,61614.0,0.001]
[1724421823361,0.16400298,61631.0,61612.0,0.2475]
[1724421823362,0.16400298,61631.0,61618.0,0.001]
[1724421823595,0.16400298,61631.0,61612.0,0.2475]
[1724421823596,0.162301,61614.0,61612.0,0.2475]
[1724421823767,0.162303,61614.0,61612.0,0.2475]
[1724421824124,0.162277,61623.0,61619.0,0.001]
[1724421824381,0.162292,61618.0,61612.0,0.2475]
[1724421824597,0.324517,61630.0,61611.0,0.0002]
[1724421824598,0.81153,61612.0,61611.0,0.0002]
[1724421825009,0.486918,61612.0,61611.0,0.0002]
[1724421825215,0.2531,61623.0,61611.0,0.0002]
[1724421825216,0.2531,61623.0,61611.0,0.0012]
[1724421825421,0.162306,61612.0,61611.0,0.0012]
[1724421825687,0.16400298,61622.0,61611.0,0.0012]
[1724421825688,0.324562,61622.0,61611.0,0.0012]
[1724421825875,0.32455,61624.0,61616.0,0.001]
[1724421826076,0.162306,61612.0,61611.0,0.0002]
[1724421826278,0.162306,61612.0,61611.0,0.0012]
[1724421826433,0.486918,61612.0,61611.0,0.0002]
[1724421826650,0.162306,61612.0,61611.0,0.0012]
[1724421826833,0.486918,61612.0,61611.0,0.0002]
[1724421827057,0.162306,61612.0,61611.0,0.0012]
[1724421827376,0.486918,61612.0,61611.0,0.0002]
[1724421827578,0.81153,61612.0,61611.0,0.0002]
[1724421827781,1.30014498,61612.0,61611.0,0.0002]
[1724421828345,1.40014498,61612.0,61611.0,0.0002]
[1724421828754,1.40014498,61612.0,61582.0,0.2384]
[1724421828755,0.26400298,61612.0,61590.0,0.001]
[1724421828958,0.26400298,61612.0,61582.0,0.2293]
[1724421828959,0.2395,61604.0,61582.0,0.002]
[1724421829352,0.1,61612.0,61595.0,0.001]
[1724421829353,4e-05,61612.0,61595.0,0.001]
[1724421829500,4e-05,61612.0,61582.0,0.002]
[1724421829501,4e-05,61612.0,61605.0,0.1928]
[1724421829698,0.324617,61611.0,61605.0,0.1928]
[1724421830003,0.162321,61606.0,61605.0,0.1928]
[1724421830179,4e-05,61612.0,61605.0,0.1815]
[1724421830390,4e-05,61612.0,61611.0,0.489925]
[1724421830587,4e-05,61612.0,61611.0,0.97950498]
[1724421830794,4e-05,61612.0,61611.0,0.16796298]
[1724421831392,4e-05,61612.0,61611.0,0.97950498]
[1724421831591,0.49249154,61641.0,61621.0,0.00196]
[1724421831793,0.49229154,61622.0,61620.0,0.162282]
[1724421832147,0.324506,61633.0,61619.0,0.235]
[1724421832314,0.2388,61635.0,61619.0,0.235]
[1724421832718,0.2388,61635.0,61611.0,0.00396]
[1724421832719,0.16400298,61631.0,61612.0,0.2523]
[1724421833100,0.32452,61630.0,61614.0,0.1987]
[1724421833349,0.324522,61629.0,61615.0,0.16400298]
[1724421833725,0.49229154,61639.0,61614.0,0.1987]
[1724421833726,0.16400298,61628.0,61614.0,0.1887]
[1724421833891,0.324519,61630.0,61618.0,0.002]
[1724421834072,0.59229154,61639.0,61618.0,0.002]
[1724421834073,0.324506,61633.0,61618.0,0.002]
[1724421834276,0.16400298,61631.0,61618.0,0.002]
[1724421834601,0.16400298,61631.0,61614.0,0.1887]
[1724421834602,0.162295,61616.0,61615.0,0.002]
[1724421834734,0.16400298,61631.0,61615.0,0.002]
[1724421834735,0.324544,61625.0,61615.0,0.002]
[1724421834939,0.227305,61630.0,61616.0,0.0443]
[1724421835255,0.162264,61628.0,61616.0,0.16400298]
[1724421835457,0.065036,61637.0,61622.0,0.00196]
[1724421835714,0.065036,61637.0,61614.0,0.1807]
[1724421835715,0.065036,61637.0,61627.0,0.2406]
[1724421835848,0.49229154,61638.0,61616.0,0.2546]
[1724421836210,0.324498,61634.0,61616.0,0.41860298]
[1724421836450,0.162262,61629.0,61616.0,0.58089698]
[1724421836651,0.065036,61637.0,61616.0,0.58089698]
[1724421836652,0.324518,61630.0,61616.0,0.41860298]
[1724421836855,0.49229154,61629.0,61616.0,0.2446]
[1724421837071,0.16400298,61629.0,61616.0,0.2446]
[1724421837283,4e-05,61632.0,61617.0,0.03811977]
[1724421837478,4e-05,61632.0,61626.0,0.162266]
[1724421837681,4e-05,61632.0,61629.0,0.16226]
[1724421837897,4e-05,61632.0,61627.0,0.16596298]
[1724421838101,4e-05,61632.0,61628.0,0.16400298]
[1724421838226,4e-05,61632.0,61618.0,0.324576]
[1724421838227,4e-05,61632.0,61625.0,0.00196]
[1724421838427,4e-05,61632.0,61626.0,0.16400298]
[1724421838661,4e-05,61632.0,61619.0,0.00196]
[1724421838836,0.324513,61631.0,61620.0,0.16400298]
[1724421839039,0.324529,61628.0,61620.0,0.16400298]
[1724421839270,0.324529,61628.0,61605.0,0.324645]
[1724421839271,0.324513,61631.0,61621.0,0.0165963]
[1724421839501,0.0002,61641.0,61640.0,0.163232]
[1724421839680,0.0002,61641.0,61640.0,0.88965898]
[1724421839882,0.0002,61641.0,61640.0,0.56519498]
[1724421840081,0.0002,61641.0,61640.0,0.88965898]
[1724421840282,0.0002,61641.0,61640.0,1.19357208]
[1724421840485,0.0002,61641.0,61640.0,1.72108698]
[1724421840711,0.0002,61641.0,61640.0,1.07215898]
[1724421840945,0.0002,61641.0,61640.0,0.4195]
[1724421841365,0.0002,61641.0,61631.0,0.4304]
[1724421841366,0.324465,61640.0,61631.0,0.4304]
[1724421841602,0.0002,61641.0,61632.0,0.16596298]
[1724421841952,0.324467,61640.0,61631.0,0.4304]
[1724421842159,0.0002,61641.0,61631.0,0.4304]
[1724421842372,0.0002,61641.0,61624.0,0.324546]
[1724421842373,0.16400298,61640.0,61624.0,0.243]
[1724421842574,0.16400298,61640.0,61622.0,0.1994]
[1724421843127,0.0002,61641.0,61627.0,0.00196]
[1724421843329,0.324492,61635.0,61626.0,0.2442]
[1724421843527,0.0002,61641.0,61626.0,0.2442]
[1724421843752,0.0002,61641.0,61627.0,0.16400298]
[1724421843962,0.162236,61639.0,61627.0,0.16400298]
[1724421844168,0.0002,61641.0,61631.0,0.00196]
[1724421844368,0.0002,61641.0,61635.0,0.00196]
[1724421844572,0.0002,61641.0,61625.0,0.324541]
[1724421844573,0.0002,61641.0,61639.0,0.2437]
[1724421844783,0.0002,61641.0,61640.0,0.83415898]
[1724421844991,0.0002,61641.0,61640.0,1.15862298]
[1724421845167,0.0002,61641.0,61640.0,1.43490298]
[1724421845478,0.324233,61684.0,61669.0,0.164114]
[1724421845683,0.324206,61689.0,61669.0,0.00196]
[1724421845830,0.0002,61679.0,61667.0,0.4252]
[1724421846013,0.162135,61677.0,61670.0,0.001]
[1724421846216,0.0002,61679.0,61668.0,0.00196]
[1724421846423,0.0002,61679.0,61669.0,0.324308]
[1724421846624,0.0002,61679.0,61668.0,0.00196]
[1724421846826,0.0002,61679.0,61669.0,0.16400298]
[1724421847022,0.0002,61679.0,61667.0,0.4252]
[1724421847243,0.49229154,61678.0,61662.0,0.00096]